fUSD/lending_fUSD_20250530
["ID","MTS","AMOUNT","RATE_DAILY","PERIOD"]
[363125455,1748591464643,-2320.942705,0.00022415,7]
[363125456,1748591464652,-2320.942705,0.00022415,7]
[363125457,1748591464662,-292.780866,0.00022415,2]
[363125458,1748591464671,-271.867947,0.00022415,2]
[363125459,1748591464680,-250.955028,0.00022415,2]
[363125460,1748591464690,-1955.7621261,0.00022415,2]
[363125461,1748591464699,-1812.21101,0.00022415,2]
[363125462,1748591464709,-1668.6598939,0.00022415,2]
[363125463,1748591464718,-151.0,0.00022415,7]
[363125464,1748591464727,-151.0,0.00022415,7]
[363125465,1748591464737,-150.0,0.00022416,2]
[363125466,1748591464746,-357.60382575,0.0002242,2]
[363125467,1748591464756,-357.60382575,0.0002242,2]
[363125468,1748591464766,-150.0,0.00022421,2]
[363125469,1748591464775,-151.0,0.00022424,7]
[363125470,1748591464785,-1525.1087779,0.00022425,2]
[363125471,1748591464795,-150.0,0.00022427,2]
[363125472,1748591464804,-300.0,0.00022429,2]
[363125473,1748591464813,-284.344086,0.00022429,7]
[363125474,1748591464822,-151.0,0.00022429,7]
[363125475,1748591464831,-151.0,0.00022429,7]
[363125476,1748591464841,-161.423711,0.00022429,7]
[363125477,1748591464850,-161.423711,0.00022429,7]
[363125478,1748591464859,-1086.4063636,0.0002243,2]
[363125479,1748591464869,-4980.32400119,0.0002243,2]
[363125480,1748591464886,-5867.30468928,0.0002243,2]
[363125481,1748591464917,-643.29722689,0.00021917,2]
[363125482,1748591464929,-256.10277311,0.00021917,2]
[363125483,1748591464938,-259.71822003,0.00021917,2]
[363125484,1748591464950,-3680.0,0.00021917,2]
[363125485,1748591464962,-1435.71016166,0.00021917,2]
[363125486,1748591464973,-459.51161831,0.00021917,2]
[363125487,1748591464983,-323.48298886,0.0002243,2]
[363125488,1748591464994,-631.08877386,0.0002243,2]
[363125489,1748591966556,500.0,0.00019164,2]
[363125491,1748592214499,153.83,0.00013699,2]
[363125492,1748592266614,876.4,0.00018954,2]
[363125493,1748592273194,-153.83,0.00020187,2]
[363125494,1748592273218,-830.253256,0.00020813,2]
[363125495,1748592273241,-250.0,0.00020969,2]
[363125496,1748592273268,-183.22,0.00020998,2]
[363125497,1748592273293,-150.0,0.0002107,7]
[363125498,1748592273317,-1000.0,0.00021126,2]
[363125499,1748592273342,-214.0,0.00021152,2]
[363125500,1748592273370,-876.4,0.00021218,2]
[363125501,1748592273399,-164.93,0.00021223,2]
[363125502,1748592273425,-500.0,0.00021356,2]
[363125503,1748592273450,-166.66666667,0.00021479,2]
[363125504,1748592273474,-166.66666667,0.00021562,2]
[363125505,1748592273498,-166.66666667,0.00021644,2]
[363125506,1748592273523,-166.66666667,0.00021726,2]
[363125507,1748592273545,-166.66666667,0.00021808,2]
[363125508,1748592273570,-300.0,0.00021816,2]
[363125509,1748592273594,-6001.80992644,0.00021817,2]
[363125510,1748592273618,-163.04,0.00021863,2]
[363125511,1748592273642,-6001.80992643,0.00021874,2]
[363125512,1748592273666,-166.66666667,0.0002189,2]
[363125513,1748592273690,-1200.0,0.00021899,2]
[363125514,1748592273715,-4962.85662418,0.000219,2]
[363125515,1748592273739,-4962.85662413,0.000219,2]
[363125516,1748592273764,-4962.85662413,0.000219,2]
[363125517,1748592273789,-4962.85662413,0.000219,2]
[363125518,1748592273813,-151.0,0.00021904,2]
[363125519,1748592273835,-156.0,0.00021904,2]
[363125520,1748592273859,-154.81765476,0.00021904,2]
[363125521,1748592273883,-1115.157653,0.00021904,2]
[363125522,1748592273906,-677.57826705,0.00021904,2]
[363125523,1748592273929,-153.5301679,0.00021904,2]
[363125524,1748592273952,-207.4,0.00021904,2]
[363125525,1748592273977,-2550.901255,0.00021915,3]
[363125526,1748592274002,-254.80080175,0.00021916,2]
[363125527,1748592274025,-1097.23,0.00021916,2]
[363125528,1748592274049,-500.0,0.00021916,2]
[363125529,1748592274074,-420.0,0.00021917,2]
[363125530,1748592274097,-420.0,0.00021917,2]
[363125531,1748592274120,-420.0,0.00021917,2]
[363125532,1748592274144,-160.0,0.00021917,2]
[363125533,1748592274168,-420.0,0.00021917,2]
[363125534,1748592274192,-420.0,0.00021917,2]
[363125535,1748592274215,-420.0,0.00021917,2]
[363125536,1748592274239,-500.0,0.00021917,2]
[363125537,1748592274263,-160.0,0.00021917,2]
[363125538,1748592274285,-420.0,0.00021917,2]
[363125539,1748592274310,-161.38281371,0.00021917,2]
[363125540,1748592274342,-420.0,0.00021917,2]
[363125541,1748592274371,-420.0,0.00021917,2]
[363125542,1748592274395,-500.0,0.00021917,2]
[363125543,1748592274419,-420.0,0.00021917,2]
[363125544,1748592274444,-420.0,0.00021917,2]
[363125545,1748592274468,-420.0,0.00021917,2]
[363125546,1748592274491,-420.0,0.00021917,2]
[363125547,1748592274637,-420.0,0.00021917,2]
[363125548,1748592274661,-420.0,0.00021917,2]
[363125549,1748592274683,-420.0,0.00021917,2]
[363125550,1748592274704,-420.0,0.00021917,2]
[363125551,1748592274726,-500.0,0.00021917,2]
[363125552,1748592274747,-420.0,0.00021917,2]
[363125553,1748592274768,-420.0,0.00021917,2]
[363125554,1748592275006,-420.0,0.00021917,2]
[363125555,1748592275029,-420.0,0.00021917,2]
[363125556,1748592275052,-420.0,0.00021917,2]
[363125557,1748592275075,-420.0,0.00021917,2]
[363125558,1748592275098,-420.0,0.00021917,2]
[363125559,1748592275121,-500.0,0.00021917,2]
[363125560,1748592275144,-420.0,0.00021917,2]
[363125561,1748592275166,-420.0,0.00021917,2]
[363125562,1748592275189,-420.0,0.00021917,2]
[363125563,1748592275212,-536.67343719,0.00021917,2]
[363125564,1748592275236,-420.0,0.00021917,2]
[363125565,1748592275259,-500.0,0.00021917,2]
[363125566,1748592275281,-160.0,0.00021917,2]
[363125567,1748592275303,-565.83,0.00021917,2]
[363125568,1748592275325,-420.0,0.00021917,2]
[363125569,1748592275347,-504.42782837,0.00021917,2]
[363125570,1748592275369,-420.0,0.00021917,2]
[363125571,1748592275390,-420.0,0.00021917,2]
[363125572,1748592275413,-420.0,0.00021917,2]
[363125573,1748592275436,-420.0,0.00021917,2]
[363125574,1748592275458,-500.0,0.00021917,2]
[363125575,1748592275480,-420.0,0.00021917,2]
[363125576,1748592275507,-420.0,0.00021917,2]
[363125577,1748592275530,-420.0,0.00021917,2]
[363125578,1748592275553,-420.0,0.00021917,2]
[363125579,1748592275579,-500.0,0.00021917,2]
[363125580,1748592275601,-420.0,0.00021917,2]
[363125581,1748592275623,-420.0,0.00021917,2]
[363125582,1748592275647,-420.0,0.00021917,2]
[363125583,1748592275670,-420.0,0.00021917,2]
[363125584,1748592275692,-420.0,0.00021917,2]
[363125585,1748592275713,-502.16121394,0.00021917,2]
[363125586,1748592275736,-420.0,0.00021917,2]
[363125587,1748592275759,-500.0,0.00021917,2]
[363125588,1748592275781,-420.0,0.00021917,2]
[363125589,1748592275803,-420.0,0.00021917,2]
[363125590,1748592275826,-420.0,0.00021917,2]
[363125591,1748592275852,-500.0,0.00021917,2]
[363125592,1748592275875,-500.0,0.00021917,2]
[363125593,1748592275898,-420.0,0.00021917,2]
[363125594,1748592275921,-420.0,0.00021917,2]
[363125595,1748592275944,-420.0,0.00021917,2]
[363125596,1748592275967,-420.0,0.00021917,2]
[363125597,1748592275990,-420.0,0.00021917,2]
[363125598,1748592276016,-426.45958641,0.00021917,2]
[363125599,1748592276040,-420.0,0.00021917,2]
[363125600,1748592276064,-420.0,0.00021917,2]
[363125601,1748592276087,-420.0,0.00021917,2]
[363125602,1748592276110,-420.0,0.00021917,2]
[363125603,1748592276133,-420.0,0.00021917,2]
[363125604,1748592276156,-420.0,0.00021917,2]
[363125605,1748592276179,-420.0,0.00021917,2]
[363125606,1748592276201,-420.0,0.00021917,2]
[363125607,1748592276224,-365.67340357,0.00021917,2]
[363125608,1748592276247,-420.0,0.00021917,2]
[363125609,1748592276271,-420.0,0.00021917,2]
[363125610,1748592276295,-420.0,0.00021917,2]
[363125611,1748592276320,-420.0,0.00021917,2]
[363125612,1748592276346,-500.0,0.00021917,2]
[363125613,1748592276368,-420.0,0.00021917,2]
[363125614,1748592276394,-420.0,0.00021917,2]
[363125615,1748592276421,-646.66,0.00021917,2]
[363125616,1748592276447,-420.0,0.00021917,2]
[363125617,1748592276472,-420.0,0.00021917,2]
[363125618,1748592276499,-420.0,0.00021917,2]
[363125619,1748592276525,-420.0,0.00021917,2]
[363125620,1748592276554,-442.55282783,0.00021917,2]
[363125621,1748592276584,-420.0,0.00021917,2]
[363125622,1748592276608,-420.0,0.00021917,2]
[363125623,1748592276635,-420.0,0.00021917,2]
[363125624,1748592276660,-500.0,0.00021917,2]
[363125625,1748592276684,-500.0,0.00021917,2]
[363125626,1748592276709,-420.0,0.00021917,2]
[363125627,1748592276730,-500.0,0.00021917,2]
[363125628,1748592276755,-420.0,0.00021917,2]
[363125629,1748592276777,-420.0,0.00021917,2]
[363125630,1748592276799,-503.19559115,0.00021917,2]
[363125631,1748592276821,-420.0,0.00021917,2]
[363125632,1748592276843,-420.0,0.00021917,2]
[363125633,1748592276866,-420.0,0.00021917,2]
[363125634,1748592276888,-420.0,0.00021917,2]
[363125635,1748592276911,-500.0,0.00021917,2]
[363125636,1748592276932,-505.28940863,0.00021917,2]
[363125637,1748592276954,-500.0,0.00021917,2]
[363125638,1748592276975,-420.0,0.00021917,2]
[363125639,1748592276996,-500.0,0.00021917,2]
[363125640,1748592277018,-500.0,0.00021917,2]
[363125641,1748592277040,-420.0,0.00021917,2]
[363125642,1748592277061,-420.0,0.00021917,2]
[363125643,1748592277083,-366.49575701,0.00021917,2]
[363125644,1748592277105,-1200.26,0.00021917,2]
[363125645,1748592277127,-420.0,0.00021917,2]
[363125646,1748592277150,-420.0,0.00021917,2]
[363125647,1748592277172,-505.93988734,0.00021917,2]
[363125648,1748592277196,-420.0,0.00021917,2]
[363125649,1748592277218,-1727.86283993,0.00021917,2]
[363125650,1748592359806,500.0,0.00019164,2]
[363125652,1748592427735,14984.320206,7.945e-05,2]
[363125679,1748592521219,214.0,0.00020152,2]
[363125682,1748592631718,-257.11,0.00021043,2]
[363125683,1748592631729,-530.04,0.00021816,2]
[363125684,1748592631909,-197.42242151,0.00021816,2]
[363125685,1748592632019,-472.53757849,0.00021816,2]
[363125686,1748592632029,-1417.84046802,0.00021817,2]
[363125687,1748592632041,-109.47725962,0.00021817,2]
[363125688,1748592632050,-889.04062304,0.00021817,2]
[363125690,1748592632061,-332.26095277,0.00021817,2]
[363125691,1748592632073,-3580.14636537,0.00021817,2]
[363125692,1748592632083,-571.79563463,0.00021874,2]
[363125693,1748592632094,-955.52209296,0.00021874,2]
[363125694,1748592632103,-4801.44794114,0.00021874,2]
[363125695,1748592632113,-350.00141162,0.000219,2]
[363125696,1748592632122,-3970.28529938,0.000219,2]
[363125697,1748592632132,-3970.2852993,0.000219,2]
[363125698,1748592632141,-3970.2852993,0.000219,2]
[363125699,1748592632151,-3970.2852993,0.000219,2]
[363125700,1748592632160,-151.0,0.00021904,2]
[363125701,1748592632170,-151.0,0.00021904,2]
[363125702,1748592632180,-1115.157653,0.00021904,2]
[363125703,1748592632190,-207.4,0.00021904,2]
[363125704,1748592632199,-500.0,0.00021916,2]
[363125705,1748592632209,-500.0,0.00021916,2]
[363125706,1748592632219,-500.0,0.00021916,2]
[363125707,1748592632228,-500.0,0.00021916,2]
[363125708,1748592632239,-500.0,0.00021916,2]
[363125709,1748592632248,-500.0,0.00021916,2]
[363125710,1748592632258,-500.0,0.00021916,2]
[363125711,1748592632267,-500.0,0.00021916,2]
[363125712,1748592632277,-301.89408104,0.00021917,2]
[363125713,1748592632287,-420.0,0.00021917,2]
[363125714,1748592632296,-1614.687657,0.00021917,2]
[363125715,1748592632305,-1365.304768,0.00021917,2]
[363125716,1748592632315,-420.0,0.00021917,2]
[363125717,1748592632326,-436.86,0.00021917,2]
[363125718,1748592632335,-164.59029461,0.00021917,2]
[363125732,1748592632344,-160.0,0.00021917,2]
[363125733,1748592632601,-511.56,0.00021917,2]
[363125734,1748592632610,-420.0,0.00021917,2]
[363125735,1748592632620,-420.0,0.00021917,2]
[363125736,1748592632629,-420.0,0.00021917,2]
[363125737,1748592632639,-420.0,0.00021917,2]
[363125738,1748592632648,-525.97,0.00021917,2]
[363125739,1748592632658,-420.0,0.00021917,2]
[363125740,1748592632667,-695.25,0.00021917,2]
[363125741,1748592632677,-289.64592976,0.00021917,2]
[363125742,1748592632688,-426.48506709,0.00021917,2]
[363125743,1748592632699,-420.0,0.00021917,2]
[363125744,1748592632708,-420.0,0.00021917,2]
[363125745,1748592632717,-435.44,0.00021917,2]
[363125746,1748592632727,-451.08,0.00021917,2]
[363125747,1748592632737,-420.0,0.00021917,2]
[363125748,1748592632746,-420.0,0.00021917,2]
[363125749,1748592632756,-420.0,0.00021917,2]
[363125750,1748592632767,-420.0,0.00021917,2]
[363125751,1748592632777,-672.66,0.00021917,2]
[363125752,1748592632787,-420.0,0.00021917,2]
[363125753,1748592632796,-160.0,0.00021917,2]
[363125754,1748592632806,-420.0,0.00021917,2]
[363125755,1748592632816,-420.0,0.00021917,2]
[363125756,1748592632828,-420.0,0.00021917,2]
[363125757,1748592632838,-420.0,0.00021917,2]
[363125758,1748592632848,-420.0,0.00021917,2]
[363125759,1748592632858,-420.0,0.00021917,2]
[363125760,1748592632868,-427.16437522,0.00021917,2]
[363125761,1748592632877,-420.0,0.00021917,2]
[363125762,1748592632887,-420.0,0.00021917,2]
[363125763,1748592632897,-420.0,0.00021917,2]
[363125764,1748592632907,-307.08084353,0.00021917,2]
[363125765,1748592632916,-420.0,0.00021917,2]
[363125766,1748592632926,-420.0,0.00021917,2]
[363125767,1748592632936,-420.0,0.00021917,2]
[363125768,1748592632945,-267.77610969,0.00021917,2]
[363125769,1748592632955,-420.0,0.00021917,2]
[363125770,1748592632964,-420.0,0.00021917,2]
[363125771,1748592632974,-420.0,0.00021917,2]
[363125772,1748592632984,-420.0,0.00021917,2]
[363125773,1748592632993,-500.0,0.00021917,2]
[363125774,1748592633003,-494.81019021,0.00021917,2]
[363125775,1748592633013,-422.64037548,0.00021917,2]
[363125776,1748592633023,-420.0,0.00021917,2]
[363125777,1748592633033,-420.0,0.00021917,2]
[363125778,1748592633042,-420.0,0.00021917,2]
[363125779,1748592633052,-635.6,0.00021917,2]
[363125780,1748592633061,-420.0,0.00021917,2]
[363125781,1748592633071,-494.07,0.00021917,2]
[363125782,1748592633080,-420.0,0.00021917,2]
[363125783,1748592633090,-420.0,0.00021917,2]
[363125784,1748592633100,-420.0,0.00021917,2]
[363125785,1748592633109,-331.97143131,0.00021917,2]
[363125786,1748592633119,-420.0,0.00021917,2]
[363125787,1748592633128,-420.0,0.00021917,2]
[363125788,1748592633138,-420.0,0.00021917,2]
[363125789,1748592633147,-420.0,0.00021917,2]
[363125790,1748592633157,-420.0,0.00021917,2]
[363125791,1748592633167,-304.99454281,0.00021917,2]
[363125792,1748592633177,-420.0,0.00021917,2]
[363125793,1748592633187,-420.0,0.00021917,2]
[363125794,1748592633197,-423.96793741,0.00021917,2]
[363125795,1748592633207,-426.48559626,0.00021917,2]
[363125796,1748592633217,-500.0,0.00021917,2]
[363125797,1748592633227,-500.0,0.00021917,2]
[363125798,1748592633236,-500.0,0.00021917,2]
[363125799,1748592633245,-500.0,0.00021917,2]
[363125800,1748592633256,-420.0,0.00021917,2]
[363125801,1748592633266,-420.0,0.00021917,2]
[363125802,1748592633276,-425.3177623,0.00021917,2]
[363125803,1748592633287,-420.0,0.00021917,2]
[363125804,1748592633297,-432.13,0.00021917,2]
[363125805,1748592633307,-1396.34,0.00021917,2]
[363125806,1748592633318,-1292.13,0.00021917,2]
[363125807,1748592633329,-480.11,0.00021917,2]
[363125808,1748592633338,-416.89624448,0.00021917,2]
[363125809,1748592633348,-423.97162541,0.00021917,2]
[363125810,1748592633358,-420.0,0.00021917,2]
[363125811,1748592633369,-517.4,0.00021917,2]
[363125812,1748592633379,-420.0,0.00021917,2]
[363125813,1748592633389,-444.52,0.00021917,2]
[363125814,1748592633399,-1167.4,0.00021917,2]
[363125815,1748592633409,-500.0,0.00021917,2]
[363125816,1748592633421,-584.44721238,0.00021917,2]
[363125817,1748592633432,-420.0,0.00021917,2]
[363125818,1748592633442,-873.96,0.00021917,2]
[363125819,1748592633452,-521.64,0.00021917,2]
[363125820,1748592633462,-474.11,0.00021917,2]
[363125821,1748592633472,-584.73,0.00021917,2]
[363125822,1748592633482,-778.5,0.00021917,2]
[363125823,1748592633493,-1030.8,0.00021917,2]
[363125824,1748592633503,-420.0,0.00021917,2]
[363125825,1748592633513,-420.70503836,0.00021917,2]
[363125826,1748592633523,-420.0,0.00021917,2]
[363125827,1748592633533,-420.0,0.00021917,2]
[363125828,1748592633543,-420.0,0.00021917,2]
[363125829,1748592633554,-420.0,0.00021917,2]
[363125830,1748592633564,-420.0,0.00021917,2]
[363125831,1748592633575,-160.0,0.00021917,2]
[363125832,1748592633585,-425.86269819,0.00021917,2]
[363125833,1748592633595,-1254.81,0.00021917,2]
[363125834,1748592633605,-908.97,0.00021917,2]
[363125835,1748592633614,-424.2378966,0.00021917,2]
[363125836,1748592633624,-420.0,0.00021917,2]
[363125837,1748592633634,-536.96471163,0.00021917,2]
[363125838,1748592633644,-420.0,0.00021917,2]
[363125839,1748592633653,-420.0,0.00021917,2]
[363125840,1748592633663,-420.0,0.00021917,2]
[363125841,1748592633672,-420.0,0.00021917,2]
[363125842,1748592633682,-420.0,0.00021917,2]
[363125843,1748592633696,-420.0,0.00021917,2]
[363125844,1748592633706,-420.0,0.00021917,2]
[363125845,1748592633716,-507.03887841,0.00021917,2]
[363125846,1748592633726,-572.57,0.00021917,2]
[363125847,1748592633738,-420.0,0.00021917,2]
[363125848,1748592633747,-420.0,0.00021917,2]
[363125849,1748592633757,-420.0,0.00021917,2]
[363125850,1748592633767,-476.4,0.00021917,2]
[363125851,1748592633777,-420.0,0.00021917,2]
[363125852,1748592633787,-420.0,0.00021917,2]
[363125853,1748592633797,-420.0,0.00021917,2]
[363125854,1748592633806,-420.0,0.00021917,2]
[363125855,1748592633816,-420.0,0.00021917,2]
[363125856,1748592633827,-420.0,0.00021917,2]
[363125857,1748592633837,-684.88,0.00021917,2]
[363125858,1748592633846,-500.0,0.00021917,2]
[363125859,1748592633856,-517.12252397,0.00021917,2]
[363125860,1748592633866,-420.0,0.00021917,2]
[363125861,1748592633876,-420.0,0.00021917,2]
[363125862,1748592633885,-420.0,0.00021917,2]
[363125863,1748592633895,-427.4518134,0.00021917,2]
[363125864,1748592633905,-420.0,0.00021917,2]
[363125865,1748592633914,-420.0,0.00021917,2]
[363125866,1748592633924,-420.0,0.00021917,2]
[363125867,1748592633934,-423.42910013,0.00021917,2]
[363125868,1748592633943,-500.0,0.00021917,2]
[363125869,1748592633953,-420.0,0.00021917,2]
[363125870,1748592633962,-420.0,0.00021917,2]
[363125871,1748592633972,-420.0,0.00021917,2]
[363125872,1748592633981,-420.0,0.00021917,2]
[363125873,1748592633991,-857.34,0.00021917,2]
[363125874,1748592634000,-978.18,0.00021917,2]
[363125875,1748592634009,-707.26,0.00021917,2]
[363125876,1748592634019,-420.0,0.00021917,2]
[363125877,1748592634028,-447.25,0.00021917,2]
[363125878,1748592634037,-171.1304298,0.00021917,2]
[363125879,1748592634046,-602.06,0.00021917,2]
[363125880,1748592634056,-420.0,0.00021917,2]
[363125881,1748592634065,-420.0,0.00021917,2]
[363125882,1748592634074,-420.0,0.00021917,2]
[363125883,1748592634084,-687.96,0.00021917,2]
[363125884,1748592634093,-420.0,0.00021917,2]
[363125885,1748592634103,-420.0,0.00021917,2]
[363125886,1748592634112,-420.0,0.00021917,2]
[363125887,1748592634122,-794.45,0.00021917,2]
[363125888,1748592634131,-525.38,0.00021917,2]
[363125889,1748592634141,-420.0,0.00021917,2]
[363125890,1748592634151,-420.0,0.00021917,2]
[363125891,1748592634160,-420.0,0.00021917,2]
[363125892,1748592634170,-420.0,0.00021917,2]
[363125893,1748592634180,-1079.34,0.00021917,2]
[363125894,1748592634190,-425.72794533,0.00021917,2]
[363125895,1748592634199,-420.0,0.00021917,2]
[363125896,1748592634208,-425.30718962,0.00021917,2]
[363125897,1748592634218,-166.13286419,0.00021917,2]
[363125898,1748592634227,-420.0,0.00021917,2]
[363125899,1748592634237,-289.59024576,0.00021917,2]
[363125900,1748592634246,-1491.21,0.00021917,2]
[363125901,1748592634256,-420.0,0.00021917,2]
[363125902,1748592634266,-420.0,0.00021917,2]
[363125903,1748592634276,-420.0,0.00021917,2]
[363125904,1748592634286,-420.0,0.00021917,2]
[363125905,1748592634296,-420.0,0.00021917,2]
[363125906,1748592634306,-420.0,0.00021917,2]
[363125907,1748592634316,-420.0,0.00021917,2]
[363125908,1748592634326,-1299.15,0.00021917,2]
[363125909,1748592634336,-617.5,0.00021917,2]
[363125910,1748592634346,-420.0,0.00021917,2]
[363125911,1748592634355,-420.0,0.00021917,2]
[363125912,1748592634365,-420.0,0.00021917,2]
[363125913,1748592634375,-420.0,0.00021917,2]
[363125914,1748592634384,-500.0,0.00021917,2]
[363125915,1748592634394,-421.68204441,0.00021917,2]
[363125916,1748592634404,-420.0,0.00021917,2]
[363125917,1748592634414,-420.0,0.00021917,2]
[363125918,1748592634423,-420.0,0.00021917,2]
[363125919,1748592634433,-420.0,0.00021917,2]
[363125920,1748592634442,-413.73438292,0.00021917,2]
[363125921,1748592634451,-852.56449106,0.00021917,2]
[363125923,1748592634980,-26.86550894,0.00021917,2]
[363125924,1748592634989,-404.62802524,0.00021917,2]
[363125925,1748592635005,-15.37197476,0.00021917,2]
[363125926,1748592635015,-616.63,0.00021917,2]
[363125927,1748592635024,-637.71,0.00021917,2]
[363125929,1748592635034,-492.69,0.00021917,2]
[363125930,1748592635043,-420.0,0.00021917,2]
[363125931,1748592635052,-405.49802524,0.00021917,2]
[363125938,1748592638025,-14.50197476,0.00021917,2]
[363125939,1748592638035,-420.0,0.00021917,2]
[363125940,1748592638044,-420.0,0.00021917,2]
[363125941,1748592638054,-453.42,0.00021917,2]
[363125942,1748592638064,-2174.18,0.00021917,2]
[363125943,1748592638074,-159.50105524,0.00021917,2]
[363125944,1748592638086,-805.23894476,0.00021917,2]
[363125945,1748592638095,-420.0,0.00021917,2]
[363125946,1748592638105,-817.81,0.00021917,2]
[363125947,1748592638114,-667.05,0.00021917,2]
[363125948,1748592638124,-1300.91,0.00021917,2]
[363125949,1748592638133,-420.0,0.00021917,2]
[363125950,1748592638143,-1158.96877103,0.00021917,2]
[363125951,1748592638183,-399.47122897,0.00021917,2]
[363125952,1748592638192,-377.31108424,0.00021917,2]
[363125953,1748592638204,-42.68891576,0.00021917,2]
[363125954,1748592638214,-200.85768392,0.00021917,2]
[363125955,1748592638223,-420.0,0.00021917,2]
[363125956,1748592638233,-420.0,0.00021917,2]
[363125957,1748592638244,-1141.13,0.00021917,2]
[363125958,1748592638255,-420.0,0.00021917,2]
[363125959,1748592638264,-1073.25,0.00021917,2]
[363125960,1748592638274,-524.52,0.00021917,2]
[363125961,1748592638283,-420.0,0.00021917,2]
[363125962,1748592638292,-420.0,0.00021917,2]
[363125963,1748592638303,-420.0,0.00021917,2]
[363125964,1748592638312,-420.0,0.00021917,2]
[363125965,1748592638322,-823.63099969,0.00021917,2]
[363125966,1748592638335,-199.46900031,0.00021917,2]
[363125967,1748592638344,-422.37615518,0.00021917,2]
[363125968,1748592638354,-2689.39,0.00021917,2]
[363125969,1748592638363,-758.73,0.00021917,2]
[363125970,1748592638374,-420.0,0.00021917,2]
[363125971,1748592638383,-654.28,0.00021917,2]
[363125972,1748592638393,-420.0,0.00021917,2]
[363125973,1748592638403,-780.91,0.00021917,2]
[363125974,1748592638414,-1249.93,0.00021917,2]
[363125975,1748592638423,-420.0,0.00021917,2]
[363125976,1748592638433,-420.0,0.00021917,2]
[363125977,1748592638442,-420.0,0.00021917,2]
[363125978,1748592638452,-560.75,0.00021917,2]
[363125979,1748592638462,-420.0,0.00021917,2]
[363125980,1748592638471,-688.38,0.00021917,2]
[363125981,1748592638481,-840.84,0.00021917,2]
[363125982,1748592638490,-420.0,0.00021917,2]
[363125983,1748592638500,-420.0,0.00021917,2]
[363125984,1748592638509,-420.0,0.00021917,2]
[363125985,1748592638521,-420.0,0.00021917,2]
[363125987,1748592638531,-430.24124531,0.00021917,2]
[363125989,1748592638540,-487.69,0.00021917,2]
[363125991,1748592638550,-792.52,0.00021917,2]
[363125995,1748592638559,-1569.5,0.00021917,2]
[363125998,1748592638569,-422.50052636,0.00021917,2]
[363126001,1748592638579,-426.8308084,0.00021917,2]
[363126003,1748592638588,-507.33,0.00021917,2]
[363126005,1748592638597,-1686.51,0.00021917,2]
[363126007,1748592638607,-420.0,0.00021917,2]
[363126008,1748592638616,-158.578473,0.00021917,2]
[363126010,1748592638626,-168.489514,0.00021917,2]
[363126011,1748592638635,-986.14,0.00021917,2]
[363126012,1748592638644,-420.0,0.00021917,2]
[363126013,1748592638654,-420.0,0.00021917,2]
[363126014,1748592638664,-160.0,0.00021917,2]
[363126015,1748592638674,-639.64,0.00021917,2]
[363126016,1748592638684,-483.58629136,0.00021917,2]
[363126017,1748592638696,-755.14,0.00021917,2]
[363126018,1748592638706,-424.39540717,0.00021917,2]
[363126019,1748592638715,-160.0,0.00021917,2]
[363126020,1748592638724,-255.45,0.00021917,2]